fUSD/lending_fUSD_20251214
["ID","MTS","AMOUNT","RATE_DAILY","PERIOD"]
[398456502,1765674634663,-151.0,0.00016557,2]
[398456503,1765674634673,-8572.11327611,0.0001656,2]
[398456504,1765674634682,-150.0,0.00016562,2]
[398456505,1765674634692,-368.0,0.00016572,2]
[398456506,1765674634701,-151.0,0.00016601,2]
[398456507,1765674634710,-151.0,0.00016601,2]
[398456508,1765674634719,-151.0,0.00016601,2]
[398456509,1765674634728,-153.390681,0.00016601,2]
[398456510,1765674634737,-151.0,0.00016601,2]
[398456511,1765674634746,-359.255206,0.00016601,2]
[398456512,1765674634755,-359.255206,0.00016601,2]
[398456513,1765674634764,-359.255206,0.00016601,2]
[398456514,1765674634773,-359.255206,0.00016601,2]
[398456515,1765674634787,-151.0,0.00016601,2]
[398456516,1765674634796,-151.0,0.00016601,2]
[398456517,1765674634804,-150.0,0.00016647,2]
[398456518,1765674634813,-1818.49683355,0.0001666,2]
[398456519,1765674634822,-189.0,0.00016666,2]
[398456520,1765674634831,-546.0,0.00016676,2]
[398456521,1765674634840,-605.94,0.00016691,2]
[398456522,1765674634849,-433.43,0.00016695,2]
[398456523,1765674634859,-500.0,0.00016695,2]
[398456524,1765674634869,-153.04245017,0.00016695,2]
[398456525,1765674634878,-151.0,0.00016695,2]
[398456526,1765674634888,-595.37131296,0.00016695,2]
[398456527,1765674634898,-151.0,0.00016695,2]
[398456528,1765674634907,-719.04747942,0.00016695,2]
[398456529,1765674634917,-151.0,0.00016696,2]
[398456530,1765674634926,-961.34595,0.00016696,2]
[398456531,1765674634935,-151.0,0.00016696,2]
[398456532,1765674634944,-961.34595,0.00016696,2]
[398456533,1765674634953,-961.34595,0.00016696,2]
[398456534,1765674634963,-961.34595,0.00016696,2]
[398456535,1765674634972,-151.0,0.00016696,2]
[398456536,1765674634981,-151.0,0.00016696,2]
[398456537,1765674634991,-546.0,0.00016699,2]
[398456538,1765674635000,-150.0,0.00016701,2]
[398456539,1765674635009,-250.0,0.00016701,2]
[398456540,1765674635019,-500.0,0.00016701,2]
[398456541,1765674635028,-150.0,0.00016701,2]
[398456542,1765674635038,-500.0,0.00016701,2]
[398456543,1765674635048,-150.0,0.00016701,2]
[398456544,1765674635057,-151.0,0.00016706,2]
[398456545,1765674635067,-8572.11327607,0.00016709,2]
[398456546,1765674635078,-187.666979,0.00016709,2]
[398456547,1765674635088,-150.0,0.00016744,2]
[398456548,1765674635097,-546.0,0.00016778,2]
[398456549,1765674635106,-4636.0,0.00016807,2]
[398456550,1765674635116,-151.0,0.00016807,2]
[398456551,1765674635128,-183.60170683,0.00016807,2]
[398456552,1765674635137,-151.0,0.00016807,2]
[398456553,1765674635147,-151.0,0.00016807,2]
[398456554,1765674635156,-151.0,0.00016807,2]
[398456555,1765674635165,-151.0,0.00016807,2]
[398456556,1765674635174,-242.480195,0.00016807,2]
[398456557,1765674635184,-151.0,0.00016807,2]
[398456558,1765674635193,-10889.11206497,0.00016818,2]
[398456559,1765674635202,-359.255206,0.00016818,2]
[398456560,1765674635211,-359.255206,0.00016818,2]
[398456561,1765674635220,-359.255206,0.00016818,2]
[398456562,1765674635229,-359.255198,0.00016818,2]
[398456563,1765674635239,-151.0,0.00016818,2]
[398456564,1765674635248,-7000.0,0.0001683,2]
[398456565,1765674635257,-150.0,0.00016838,2]
[398456566,1765674635267,-500.0,0.00016838,2]
[398456567,1765674635276,-500.0,0.00016838,2]
[398456568,1765674635285,-151.0,0.00016839,2]
[398456569,1765674635295,-151.0,0.00016839,2]
[398456570,1765674635304,-151.0,0.00016839,2]
[398456571,1765674635313,-211.315199,0.00016839,2]
[398456572,1765674635322,-233.22713,0.00016839,2]
[398456573,1765674635335,-151.0,0.00016839,2]
[398456574,1765674635345,-197.30401532,0.00016855,2]
[398456575,1765674635355,-8572.11327607,0.00016858,2]
[398456576,1765674635365,-546.0,0.00016861,2]
[398456577,1765674635374,-200.0,0.00016863,2]
[398456578,1765674635384,-2000.0,0.00016864,2]
[398456579,1765674635393,-200.0,0.00016864,2]
[398456580,1765674635402,-151.0,0.00016864,2]
[398456581,1765674635411,-961.34595,0.00016864,2]
[398456582,1765674635422,-151.0,0.00016864,2]
[398456583,1765674635432,-961.34595,0.00016864,2]
[398456584,1765674635442,-961.34595,0.00016864,2]
[398456585,1765674635451,-961.345942,0.00016864,2]
[398456586,1765674635460,-3066.0,0.00016898,2]
[398456587,1765674635469,-334.4314517,0.000169,2]
[398456588,1765674635479,-701.66799993,0.000169,2]
[398456589,1765674635493,-500.0,0.00016938,2]
[398456590,1765674635504,-500.0,0.00016938,2]
[398456591,1765674635513,-76162.15334641,0.00016939,2]
[398456601,1765674637730,-13861.59247929,0.00016939,2]
[398456602,1765674637953,-40808.3943762,0.00016939,2]
[398456603,1765674637962,-3024.2109521,0.00016939,2]
[398456604,1765674637972,-1058.2591832,0.00016939,2]
[398456605,1765674637981,-127130.1087851,0.00016939,2]
[398456606,1765674637990,-151.0,0.00016939,2]
[398456607,1765674637998,-151.0,0.00016939,2]
[398456608,1765674638007,-151.0,0.00016939,2]
[398456609,1765674638017,-151.0,0.00016939,2]
[398456610,1765674638026,-151.0,0.00016939,2]
[398456611,1765674638035,-245.062125,0.00016939,2]
[398456612,1765674638045,-151.0,0.00016939,2]
[398456613,1765674638054,-203.759264,0.00016939,2]
[398456614,1765674638063,-151.0,0.00016939,2]
[398456615,1765674638072,-151.0,0.00016939,2]
[398456616,1765674638082,-151.0,0.00016939,2]
[398456617,1765674638091,-151.0,0.00016939,2]
[398456618,1765674638100,-151.0,0.00016939,2]
[398456619,1765674638109,-151.0,0.00016939,2]
[398456620,1765674638118,-151.0,0.00016939,2]
[398456621,1765674638127,-546.0,0.00016946,2]
[398456622,1765674638136,-481.04173315,0.00016962,2]
[398456623,1765674638146,-218.2368819,0.00016965,2]
[398456624,1765674638156,-433.43,0.00016969,2]
[398456625,1765674638165,-500.0,0.00016969,2]
[398456626,1765674638175,-500.0,0.00016973,2]
[398456627,1765674638184,-150.0,0.00016975,2]
[398456628,1765674638193,-500.0,0.00016975,2]
[398456629,1765674638202,-500.0,0.00016975,2]
[398456630,1765674638211,-500.0,0.00016986,2]
[398456631,1765674638220,-2253.0,0.00016986,2]
[398456632,1765674638230,-150.0,0.00016986,2]
[398456633,1765674638239,-150.0,0.00016986,2]
[398456634,1765674638249,-150.0,0.00016986,2]
[398456635,1765674638258,-150.0,0.00016986,2]
[398456636,1765674638267,-297.21853435,0.00016986,2]
[398456637,1765674638277,-151.0,0.0001699,2]
[398456638,1765674638287,-151.0,0.0001699,2]
[398456639,1765674638296,-151.0,0.0001699,2]
[398456640,1765674638305,-151.0,0.0001699,2]
[398456641,1765674638315,-151.0,0.0001699,2]
[398456642,1765674638324,-169.0,0.0001699,2]
[398456643,1765674638334,-328.76242297,0.0001699,2]
[398456644,1765674638343,-500.0,0.00016999,2]
[398456645,1765674638352,-500.0,0.00016999,2]
[398456646,1765674638362,-500.0,0.00016999,2]
[398456647,1765674638371,-167.346202,0.00016999,2]
[398456648,1765674638380,-216934.58166846,0.00017,2]
[398456649,1765674639548,-406.95691,0.00017,2]
[398456650,1765674639878,-41575.7513986,0.00017,2]
[398456651,1765674639887,-1039064.06195576,0.00017,2]
[398456652,1765674639896,-600.0,0.00017,2]
[398456653,1765674639905,-808.48519231,0.00017,15]
[398456654,1765674639914,-2000.0,0.00017,2]
[398456655,1765674639923,-300.0,0.00017,2]
[398456656,1765674639933,-208.703674,0.00017,2]
[398456657,1765674639941,-151.0,0.00017,2]
[398456658,1765674639955,-250.0,0.00017,2]
[398456659,1765674639965,-151.0,0.00017,2]
[398456660,1765674639974,-8572.11327607,0.00017007,2]
[398456661,1765674639984,-2328.099,0.00017011,2]
[398456662,1765674639993,-546.0,0.00017031,2]
[398456663,1765674640002,-10889.11206497,0.00017034,2]
[398456664,1765674640012,-175.261,0.00017048,2]
[398456665,1765674640022,-927.954,0.00017057,2]
[398456666,1765674640032,-1196.0,0.00017057,2]
[398456667,1765674640041,-2530.0,0.00017057,2]
[398456668,1765674640051,-563.0,0.00017057,2]
[398456669,1765674640061,-4796.0,0.00017057,2]
[398456670,1765674640070,-334.4314517,0.00017067,2]
[398456671,1765674640079,-150.0,0.00017086,2]
[398456672,1765674640089,-546.0,0.00017094,2]
[398456673,1765674640098,-150.0,0.00017112,2]
[398456675,1765674640108,-500.0,0.00017112,2]
[398456676,1765674640119,-518.82657361,0.00017112,2]
[398456677,1765674640129,-480.62,0.00017123,2]
[398456678,1765674640139,-480.62,0.00017123,2]
[398456679,1765674640149,-961.24,0.00017123,2]
[398456680,1765674640159,-480.62,0.00017123,2]
[398456681,1765674640168,-8572.11327607,0.00017156,2]
[398456682,1765674640179,-546.0,0.00017162,2]
[398456683,1765674640190,-546.0,0.00017169,2]
[398456684,1765674640202,-155.71682144,0.0001718,2]
[398456685,1765674640212,-200.0,0.00017186,2]
[398456686,1765674640222,-150.0,0.00017186,2]
[398456687,1765674640231,-150.0,0.00017186,2]
[398456688,1765674640241,-150.0,0.00017186,2]
[398456689,1765674640250,-3450.0,0.00017186,2]
[398456690,1765674640260,-612.729,0.00017186,2]
[398456691,1765674640269,-1324.0,0.00017186,2]
[398456692,1765674640280,-160.872,0.00017186,2]
[398456693,1765674640290,-1626.749,0.00017186,2]
[398456694,1765674640300,-644.193,0.00017186,2]
[398456695,1765674640310,-1261.0,0.00017186,2]
[398456696,1765674640319,-300.0,0.00017227,2]
[398456697,1765674640328,-1000.0,0.00017232,2]
[398456698,1765674640338,-334.4314517,0.00017233,2]
[398456699,1765674640348,-433.44,0.00017243,2]
[398456700,1765674640357,-529.60667962,0.00017243,2]
[398456701,1765674640367,-151.0,0.00017243,2]
[398456702,1765674640376,-617.40005154,0.00017243,2]
[398456703,1765674640387,-151.0,0.00017243,2]
[398456704,1765674640396,-745.65223616,0.00017243,2]
[398456705,1765674640406,-150.0,0.00017249,2]
[398456706,1765674640415,-500.0,0.00017249,2]
[398456707,1765674640425,-10889.11206497,0.00017251,2]
[398456708,1765674640434,-500.0,0.0001726,2]
[398456709,1765674640443,-150.0,0.0001726,2]
[398456710,1765674640453,-150.0,0.0001726,2]
[398456711,1765674640462,-165.22,0.00017261,2]
[398456712,1765674640473,-600.0,0.00017274,2]
[398456713,1765674640483,-283.67753335,0.00017288,2]
[398456714,1765674640500,-8572.11327607,0.00017304,2]
[398456715,1765674640515,-300.0,0.0001735,2]
[398456716,1765674640524,-300.0,0.0001735,2]
[398456717,1765674640534,-300.0,0.0001735,2]
[398456718,1765674640543,-300.0,0.0001735,2]
[398456719,1765674640554,-300.0,0.0001735,2]
[398456720,1765674640564,-2500.0,0.0001735,2]
[398456721,1765674640573,-2500.0,0.0001735,2]
[398456722,1765674640585,-151.09704785,0.0001735,2]
[398456723,1765674640594,-250.0,0.0001735,2]
[398456724,1765674640604,-2500.0,0.0001735,2]
[398456725,1765674640613,-2500.0,0.0001735,2]
[398456726,1765674640623,-2500.0,0.0001735,2]
[398456727,1765674640632,-250.0,0.0001735,2]
[398456728,1765674640642,-150.12431632,0.00017377,2]
[398456729,1765674640652,-238.71713956,0.00017386,2]
[398456730,1765674640661,-500.0,0.00017386,2]
[398456731,1765674640671,-336.0,0.00017388,2]
[398456732,1765674640680,-546.0,0.00017391,2]
[398456733,1765674640689,-334.4314517,0.000174,2]
[398456734,1765674640699,-701.66799993,0.000174,2]
[398456735,1765674640708,-155.71682144,0.0001742,2]
[398456736,1765674640718,-420.0,0.00017441,2]
[398456737,1765674640728,-8572.11327607,0.00017453,2]
[398456738,1765674640737,-379.39,0.00017459,2]
[398456739,1765674640746,-194.47,0.00017461,2]
[398456740,1765674640756,-10889.11206497,0.00017467,2]
[398456741,1765674640765,-151.0,0.00017516,2]
[398456742,1765674640774,-311.1,0.00017516,2]
[398456743,1765674640783,-642.94,0.00017516,2]
[398456744,1765674640791,-1000.0,0.00017521,2]
[398456745,1765674640801,-500.0,0.00017523,2]
[398456746,1765674640811,-1680.0,0.00017528,2]
[398456747,1765674640821,-500.0,0.00017534,2]
[398456748,1765674640830,-1600.0,0.00017534,2]
[398456749,1765674640839,-600.0,0.00017548,2]
[398456750,1765674640849,-630.23,0.00017552,2]
[398456751,1765674640858,-334.4314517,0.00017567,2]
[398456752,1765674640868,-8572.11327607,0.00017602,2]
[398456753,1765674640877,-166.67,0.00017655,2]
[398456754,1765674640887,-500.0,0.0001766,2]
[398456755,1765674640901,-155.71682144,0.0001766,2]
[398456756,1765674640911,-10889.11206497,0.00017684,2]
[398456757,1765674640921,-334.4314517,0.00017733,2]
[398456758,1765674640931,-8572.11327607,0.00017751,2]
[398456759,1765674640942,-194.13,0.00017761,2]
[398456760,1765674640952,-151.0,0.00017791,2]
[398456761,1765674640961,-640.24385345,0.00017791,2]
[398456762,1765674640970,-151.0,0.00017791,2]
[398456763,1765674640979,-418.67078279,0.00017791,2]
[398456764,1765674640989,-155.83,0.00017792,2]
[398456765,1765674640998,-500.0,0.00017797,2]
[398456766,1765674641008,-1431.90119944,0.000178,3]
[398456767,1765674641017,-500.0,0.00017808,2]
[398456768,1765674641026,-500.0,0.00017808,2]
[398456769,1765674641035,-600.0,0.00017822,2]
[398456770,1765674641044,-7000.0,0.0001783,2]
[398456771,1765674641054,-500.0,0.00017836,2]
[398456772,1765674641063,-546.0,0.00017869,2]
[398456773,1765674641073,-2039.39610426,0.0001788,2]
[398456774,1765674641082,-311.66,0.0001788,2]
[398456775,1765674641092,-155.71682144,0.000179,2]
[398456776,1765674641102,-237.63361583,0.000179,2]
[398456777,1765674641112,-600000.0,0.000179,3]
[398456778,1765674641121,-11487.79247866,0.000179,4]
[398456779,1765674641131,-38292.64159555,0.000179,2]
[398456780,1765674641140,-26804.84911688,0.000179,4]
[398456781,1765674641152,-10000.0,0.000179,2]
[398456782,1765674641160,-10889.11206497,0.000179,2]
[398456783,1765674641170,-8572.11327607,0.000179,2]
[398456784,1765674641180,-481.04173315,0.000179,3]
[398456785,1765674641190,-1225.47069524,0.000179,2]
[398456786,1765674641225,-452.16,0.000179,2]
[398456792,1765675057019,162.68,0.00015773,2]
[398456825,1765675621149,5468.8,0.00015684,2]
[398456835,1765675707934,200.0,0.00015717,2]
[398456840,1765675733642,289.64,0.00015737,2]
[398456892,1765675827389,2777.63,0.0001566,2]
[398456902,1765675832196,-300.0,0.00015851,2]
[398456903,1765675832211,-1200.0,0.00015851,2]
[398456904,1765675832221,-250.0,0.00015852,2]
[398456905,1765675832231,-98.32434958,0.00015852,2]
[398456908,1765675832253,-24545.44755042,0.00015852,2]
[398456911,1765675832262,-2303.3155,0.00015852,2]
[398456912,1765675832272,-163.9,0.00015886,2]
[398456914,1765675832281,-150.32,0.00015901,2]
[398456916,1765675832290,-300.0,0.00015949,2]
[398456918,1765675832299,-19003.7403,0.00015952,2]
[398456920,1765675832309,-151.39,0.00015952,2]
[398456922,1765675832318,-28076.54858814,0.00016,4]
[398456929,1765675837813,-208.16787088,0.00015999,2]
[398456930,1765675837822,-105.90680214,0.00015999,2]
[398456931,1765675837917,-411.71281487,0.00015999,2]
[398456932,1765675837927,-171.19921376,0.00015999,2]
[398456933,1765675837937,-97799.60510932,0.00016,4]
[398456934,1765675837947,-4404.98382406,0.00016047,2]
[398456935,1765675837958,-500.0,0.00016147,2]
[398456936,1765675837967,-150.0,0.000162,2]
[398456937,1765675837976,-150.0,0.000162,2]
[398456938,1765675837986,-150.0,0.000162,2]
[398456939,1765675837995,-150.0,0.000162,2]
[398456940,1765675838005,-297.21853435,0.000162,2]
[398456941,1765675838015,-7555.89129558,0.000162,5]
[398456942,1765675838024,-578.20924308,0.00016218,2]
[398456944,1765675838033,-721.12765535,0.00016218,2]
[398456946,1765675838043,-151.0,0.00016218,2]
[398456949,1765675838052,-574.12855637,0.00016218,2]
[398456950,1765675838063,-259.37256731,0.00016218,2]
[398456952,1765675838072,-620.0,0.00016218,2]
[398456954,1765675838081,-300.0,0.00016218,2]
[398456955,1765675838092,-200.0,0.00016218,2]
[398456956,1765675838102,-207.4,0.00016218,2]
[398456957,1765675838111,-215.0738,0.00016218,2]
[398456958,1765675838121,-223.0315306,0.00016218,2]
[398456959,1765675838131,-231.28369723,0.00016218,2]
[398456960,1765675838143,-239.84119403,0.00016218,2]
[398456961,1765675838152,-372.54851962,0.00016218,2]
[398456962,1765675838161,-216.71,0.00016218,2]
[398456964,1765675838171,-4404.98382404,0.00016253,2]
[398456966,1765675838180,-17446.70918961,0.00016318,2]
[398456968,1765675838189,-2877.05062997,0.000164,2]
[398456970,1765675838198,-381.26,0.00016438,2]
[398456972,1765675838207,-150.0,0.00016438,2]
[398456974,1765675838216,-150.0,0.00016457,2]
[398456976,1765675838226,-4404.98382404,0.00016459,2]
[398456978,1765675838235,-56347.25683417,0.00016462,2]
[398456981,1765675838248,-4693.74316583,0.00016462,2]
[398456983,1765675838257,-500.0,0.00016478,2]
[398456985,1765675838266,-500.0,0.00016478,2]
[398456987,1765675838275,-500.0,0.00016478,2]
[398456989,1765675838284,-216.72,0.00016492,2]
[398456991,1765675838293,-150.0,0.0001656,2]
[398456993,1765675838303,-150.0,0.0001656,2]
[398456995,1765675838311,-1461.99,0.0001661,2]
[398456997,1765675838321,-4404.98382404,0.00016665,2]
[398456998,1765675838331,-150.0,0.00016714,2]
[398457001,1765675838340,-500.0,0.00016721,2]
[398457002,1765675838349,-500.0,0.00016761,2]
[398457005,1765675838359,-151.0,0.00016766,2]
[398457007,1765675838368,-595.37131296,0.00016766,2]
[398457008,1765675838377,-4404.98382404,0.00016871,2]
[398457010,1765675838387,-150.0,0.0001692,2]
[398457012,1765675838396,-150.0,0.0001692,2]
[398457014,1765675838406,-500.0,0.00016938,2]
[398457017,1765675838415,-481.04173315,0.00016964,2]
[398457018,1765675838425,-691.0,0.00016971,2]
[398457020,1765675838435,-150.0,0.00016971,2]
[398457022,1765675838444,-500.0,0.00016973,2]
[398457025,1765675838455,-500.0,0.00016973,2]
[398457026,1765675838464,-500.0,0.00016986,2]
[398457028,1765675838475,-54283.05,0.00016986,2]
[398457030,1765675838486,-2253.0,0.00016986,2]
[398457032,1765675838500,-175.262,0.00016999,2]
[398457035,1765675838510,-2000.0,0.00017,2]
[398457037,1765675838520,-1862.479,0.00017,2]
[398457038,1765675838530,-320586.57682448,0.00017,2]
[398457131,1765675839674,-406.042972,0.00017,2]
[398457401,1765675842841,-503.6590016,0.00016714,2]
[398457403,1765675842851,-4378.30407118,0.00017,2]
[398457414,1765675842942,-571.5202675,0.00017,2]
[398457951,1765675848183,-10394.72703691,0.00017,2]
[398458341,1765675852524,1263.94,0.00015706,2]
[398458347,1765675852572,3742.88515664,0.00015706,2]
[398459185,1765676373518,200.0,0.0001565,2]
[398459186,1765676399417,315.63593467,0.000156,2]
[398459188,1765676449206,908.34,0.00013699,2]
[398459189,1765676513704,150.0,0.00015654,2]
[398459190,1765676591834,4683.14890869,0.00015638,2]
[398459191,1765676591856,6009.06109131,0.00015638,2]
[398459197,1765676635668,1271.65,0.00015638,2]
[398459202,1765676771977,153.0,0.000225,120]
[398459257,1765676899744,2719.29890869,0.00015752,2]
[398459258,1765676899769,9421.10099131,0.00015752,2]
[398459259,1765676959118,378.13,0.00015544,2]
[398459260,1765677002494,-1008.60164063,0.00015794,2]
[398459271,1765677031710,-619.26559381,0.00015807,2]
[398459272,1765677031867,-642.55591145,0.00015807,2]
[398459273,1765677031975,-2101.53545693,0.00015807,2]
[398459274,1765677031987,-151.0,0.00015843,2]
[398459275,1765677031999,-151.0,0.00015843,2]
[398459276,1765677032011,-151.0,0.00015843,2]
[398459277,1765677032023,-151.0,0.00015843,2]
[398459279,1765677032035,-151.0,0.00015843,2]
[398459281,1765677032047,-151.0,0.00015843,2]
[398459283,1765677032059,-151.0,0.00015843,2]
[398459284,1765677032070,-151.0,0.00015843,2]
[398459285,1765677032082,-161.92484676,0.00015843,2]
[398459286,1765677032094,-1873.607,0.00015851,2]
[398459287,1765677032106,-300.0,0.00015851,2]
[398459288,1765677032117,-178.05821386,0.00015851,2]
[398459289,1765677032129,-470.80009243,0.00015907,2]
[398459291,1765677032143,-529.19990757,0.00015907,2]
[398459292,1765677032155,-1189.81,0.00015955,2]
[398459293,1765677032167,-161.32,0.00016,7]
[398459294,1765677032178,-9611.74,0.00016028,2]
[398459295,1765677032190,-3363.35696218,0.0001604,2]
[398459296,1765677032202,-1348.41,0.00016066,2]
[398459297,1765677032213,-18703.26,0.00016119,2]
[398459298,1765677032226,-999.0,0.0001612,3]
[398459299,1765677032239,-166.66,0.00016137,2]
[398459300,1765677032251,-589.3,0.00016177,2]
[398459301,1765677032263,-150.0,0.000162,2]
[398459302,1765677032276,-150.0,0.000162,2]
[398459303,1765677032288,-158.2951493,0.000162,2]
[398459304,1765677032306,-157.53057405,0.000162,2]
[398459305,1765677032321,-165.62103431,0.000162,2]
[398459306,1765677032333,-3363.35696218,0.00016272,2]
[398459307,1765677032345,-381.16574499,0.00016317,2]
[398459308,1765677032358,-500.0,0.00016317,2]
[398459309,1765677032369,-500.0,0.00016317,2]
[398459310,1765677032383,-500.0,0.00016317,2]
[398459311,1765677032395,-927.93,0.00016438,2]
[398459312,1765677032408,-464.03,0.00016438,2]
[398459313,1765677032420,-150.58,0.00016438,2]
[398459314,1765677032431,-1104.96,0.00016438,2]
[398459315,1765677032443,-150.0,0.00016438,2]
[398459316,1765677032454,-3363.35696218,0.00016505,2]
[398459317,1765677032466,-300.0,0.00016639,2]
[398459318,1765677032477,-226.06188061,0.00016639,2]
[398459319,1765677032491,-529.04148861,0.00016639,2]
[398459320,1765677032504,-660.76666909,0.00016639,2]
[398459321,1765677032518,-151.0,0.00016639,2]
[398459322,1765677032529,-574.12855637,0.00016639,2]
[398459323,1765677032541,-651.20659541,0.00016639,2]
[398459324,1765677032552,-150.0,0.0001665,2]
[398459325,1765677032565,-177.5,0.00016722,2]
[398459326,1765677032580,-500.0,0.00016736,2]
[398459327,1765677032592,-500.0,0.00016736,2]
[398459328,1765677032605,-500.0,0.00016736,2]
[398459329,1765677032618,-500.0,0.00016736,2]
[398459330,1765677032631,-500.0,0.00016736,2]
[398459331,1765677032643,-500.0,0.00016736,2]
[398459332,1765677032655,-500.0,0.00016736,2]
[398459333,1765677032667,-500.0,0.00016736,2]
[398459334,1765677032679,-174.85562772,0.00016736,2]
[398459335,1765677032694,-375.78494095,0.00016736,2]
[398459336,1765677032707,-500.0,0.00016736,2]
[398459337,1765677032719,-540.22376764,0.00016736,2]
[398459338,1765677032732,-500.0,0.00016736,2]
[398459339,1765677032743,-3363.35696218,0.00016737,2]
[398459340,1765677032755,-221.82794779,0.00016796,2]
[398459341,1765677032767,-150.0,0.000168,2]
[398459342,1765677032778,-166.66,0.00016803,2]
[398459343,1765677032789,-175.44811214,0.0001686,2]
[398459344,1765677032801,-456.85911675,0.00016868,2]
[398459345,1765677032814,-214.45158163,0.00016883,2]
[398459346,1765677032826,-176.42355,0.00016883,2]
[398459347,1765677032838,-165.18530411,0.00016883,2]
[398459348,1765677032849,-224.30390653,0.00016883,2]
[398459349,1765677032861,-646.47646976,0.00016883,2]
[398459350,1765677032873,-883.4017231,0.00016884,2]
[398459351,1765677032884,-14868.90945734,0.00016884,2]
[398459352,1765677032899,-1491.53744342,0.00016884,2]
[398459401,1765677039434,-41794.04742761,0.00016884,2]
[398459402,1765677039445,-10111.1220421,0.00016884,2]
[398459403,1765677039457,-284.94490973,0.00016884,2]
[398459404,1765677039469,-16163.5,0.00016884,2]
[398459405,1765677039480,-47217.9287966,0.00016884,2]
[398459406,1765677039489,-4731.9582275,0.00016884,2]
[398459407,1765677039499,-3226.5518524,0.00016884,2]
[398459408,1765677039508,-481.04173315,0.00016968,2]
[398459409,1765677039517,-3363.35696218,0.0001697,2]
[398459410,1765677039525,-519.10954612,0.00016972,2]
[398459411,1765677039534,-500.0,0.00016973,2]
[398459412,1765677039543,-500.0,0.00016973,2]
[398459413,1765677039552,-500.0,0.00016973,2]
[398459414,1765677039561,-510.0,0.00016976,2]
[398459415,1765677039571,-456.85911667,0.00016983,2]
[398459416,1765677039580,-200.0,0.00016983,2]
[398459417,1765677039589,-510.83261388,0.00016983,2]
[398459418,1765677039598,-502.73171962,0.00016986,2]
[398459419,1765677039608,-239.96829058,0.00016986,2]
[398459420,1765677039618,-510.3442672,0.00016986,2]
[398459421,1765677039627,-500.0,0.00016986,2]
[398459422,1765677039636,-836.0,0.00016988,2]
[398459423,1765677039644,-1320.88,0.0001699,2]
[398459424,1765677039654,-1320.88,0.0001699,2]
[398459425,1765677039663,-541.81193278,0.00016999,2]
[398459426,1765677039672,-535.57305115,0.00016999,2]
[398459427,1765677039681,-321407.9365848,0.00017,2]
[398459428,1765677039693,-862.11638452,0.00017,2]
[398459431,1765677039891,-266.41705007,0.00017,2]
[398459434,1765677039902,-650.19879948,0.00017,2]
[398459436,1765677039913,-531.55624377,0.00017,2]
[398459438,1765677039930,-3581.09713483,0.00017,2]
[398459445,1765677039985,-439.30570007,0.00017,2]
[398459452,1765677040039,-682.81730511,0.00017,2]
[398459552,1765677042958,-334.832236,0.00017,2]
[398459553,1765677042971,-736.43301719,0.00017,2]
[398459554,1765677043012,-489.64607935,0.00017,2]
[398459555,1765677043024,-485.305,0.00017,2]
[398459556,1765677045726,-15952.19324488,0.00017,2]
[398459557,1765677045735,-2000.0,0.00017,2]
[398459558,1765677045745,-600.0,0.00017,2]
[398459559,1765677045754,-250.0,0.00017,2]
[398459560,1765677045763,-152.0,0.00017,2]
[398459561,1765677045772,-152.0,0.00017,2]
[398459562,1765677045781,-152.0,0.00017,2]